{"text_format":"1","workbook":"xlsx","n_sheets":7,"sheets":["入力方法説明","入力シート","団体取りまとめ票","エラー一覧","設定","マスタ","メッセージ"],"not_rendered":{"charts":0,"images":14,"macros":1,"external_links":0,"defined_names":19,"comments":0,"pivot_tables":0},"unopened":[],"bounds":{"document_bytes":16777216,"sheet_cells":100000,"rows_first":2000,"rows_last":500,"rows_between":2000,"halvings":0,"cell_chars":16384,"cell_head_chars":4096},"cells_cut":0,"cells_raw":0,"read":"whole","date_system":"1900"}

{"sheet":"入力方法説明","index":0,"n_rows":117,"n_cols":11,"rows_kept":117,"cut":false,"hidden":false,"merged":[]}
[]
[null,null,null,null,"受検者リストの作成方法"]
[]
[]
[]
[null,"《ご利用の前に》"]
[null,"・Officeのバージョンのご確認をお願いいたします。"]
[null,"　古いバージョンのOfficeでは正常に動作しない可能性があります。"]
[null,"　Office 2007 以降のバージョンのものをご利用ください。"]
[]
[null,"・Excelを開いたとき、下記の様なメッセージが表示された場合"]
[null,"　「コンテンツの有効化」を選択してマクロを有効にしてください。"]
[]
[null,null,"例1）Office 365 の場合"]
[]
[]
[null,null,"例2）Office 2010 の場合"]
[]
[]
[]
[]
[]
[null,"《ご利用方法》"]
[null,"　受検者が記入した「受検申請書」を[入力シート]へ記載します。"]
[null,"　入力補助機能がいくつか実装されていますが、使用せずに直接入力いただくことも可能です。"]
[]
[null,null,"1）[入力シート]を表示いただき、「商品」の項目より入力を開始してください。"]
[]
[]
[]
[]
[]
[]
[null,null,null,"▼選択用子画面"]
[]
[]
[]
[]
[]
[]
[]
[]
[]
[]
[]
[]
[]
[]
[]
[]
[]
[]
[]
[]
[]
[null,null,"2）「商品」を選択（または入力）することで、申請に際し、必要な項目が入力可能となります。"]
[null,null,"　　※薄灰色で表示される項目は入力不要です。"]
[]
[]
[null,null,"3）入力行が不足している場合は、「行追加」ボタンを押下し、行を追加してください。"]
[]
[]
[]
[]
[]
[]
[]
[]
[]
[]
[]
[]
[]
[]
[]
[]
[null,null,"4）以下の項目は選択項目が用意されています。"]
[null,null,"　　セルをWクリックする事で選択用子画面が表示されます。"]
[null,null,null,null,null,null,null,null,null,null,"▼選択用子画面"]
[]
[]
[]
[]
[]
[]
[]
[]
[]
[]
[]
[]
[]
[]
[]
[]
[]
[]
[null,null,"5）入力が完了したら、「チェック」ボタンを押下してください。"]
[null,null,"　「商品」が設定されている行を対象に、入力不備を検出します。"]
[]
[]
[]
[]
[]
[]
[]
[]
[null,null,"6）入力完了後、ツールバーの[ファイル] → [上書き保存] を選択し、データを保存してください。"]
[]
[null,null,null,"あるいは、以下の様なショートカットアイコンを選択することで、上書き保存が可能です。"]
[]
[]
[]
[]
[]
[]
[null,null,null,"同様に、[Ctrl]キー と [S]キー の同時押しでも上書き保存可能です。"]

{"sheet":"入力シート","index":1,"n_rows":19,"n_cols":29,"rows_kept":19,"cut":false,"hidden":false,"merged":[[4,2,4,4]]}
[null,"取りまとめ票 受検者リスト"]
[]
[]
[]
[null,"申込検定",{"$f":"event_name","v":"第48回(2024年7月実施)　知的財産管理技能検定"}]
[]
[null,"No","チェック","商品","漢字姓","漢字名","フリガナ姓","フリガナ名","生年月日","性別","電話番号","E-mail（任意）","郵便番号","都道府県","住所１（市区町村）","住所２（番地）","住所３（ビル･マンション名）","受検地","個人結果ﾃﾞｰﾀ送付","協会からの情報提供","受検資格番号","実務経験",null,null,"受検資格／免除申請",null,null,null,"中小企業者種別"]
[null,null,null,"※セルをWクリックすると候補が表示されます。","全角(20文字)","全角(20文字)","全角(20文字)","全角(20文字)","半角(YYYY/MM/DD)","全角","半角数字","半角英数記号","(7桁)","全角","全角／必須","全角／必須","全角／任意","全角／必須","全角","全角",null,"企業名・団体名","実務経験通算年数","経験業務内容","免除番号","認定番号または技能士番号","免除申請する試験","一部合格番号"]
[null,"No","チェック","商品","漢字姓","漢字名","フリガナ姓","フリガナ名","生年月日","性別","電話番号","E-mail","郵便番号","都道府県","住所１（市区町村）","住所２（番地）","住所３（ビル･マンション名）","受検地","個人結果ﾃﾞｰﾀ送付","協会からの情報提供","受検資格番号","企業名・団体名","実務経験通算年数","経験業務内容","免除番号","認定番号または技能士番号","免除申請する試験","一部合格番号","中小企業者種別"]
[null,1,null,null,"","","","",null,"","","",null,"","","","","","","","","","","","","","","",""]
[null,2,null,null,"","","","",null,"","","",null,"","","","","","","","","","","","","","","",""]
[null,3,null,null,"","","","",null,"","","",null,"","","","","","","","","","","","","","","",""]
[null,4,null,null,"","","","",null,"","","",null,"","","","","","",""]
[null,5,null,null,"","","","",null,"","","",null,"","","","","","",""]
[null,6,null,null,"","","","",null,"","","",null,"","","","","","",""]
[null,7,null,null,"","","","",null,"","","",null,"","","","","","",""]
[null,8,null,null,"","","","",null,"","","",null,"","","","","","",""]
[null,9,null,null,"","","","",null,"","","",null,"","","","","","",""]
[null,10,null,null,"","","","",null,"","","",null,"","","","","","","","","","","","",null,"","",""]

{"sheet":"団体取りまとめ票","index":2,"n_rows":57,"n_cols":13,"rows_kept":57,"cut":false,"hidden":false,"merged":[[13,1,13,3],[16,0,17,0],[16,3,16,6],[16,7,16,12],[17,3,17,6],[17,7,17,12],[16,1,16,2],[17,1,17,2],[12,1,12,12],[0,11,1,12],[2,0,2,12],[9,0,10,0],[9,1,10,12],[11,1,11,12],[31,0,32,0],[31,1,32,3],[31,6,31,7],[32,6,32,7],[18,3,18,12],[19,0,20,0],[19,3,19,12],[20,3,20,12],[21,0,24,0],[28,0,28,12],[29,0,30,0],[29,1,30,3],[29,6,29,7],[30,6,30,7],[19,1,19,2],[20,1,20,2],[42,5,42,7],[33,0,34,0],[33,1,34,3],[33,6,33,7],[34,6,34,7],[35,0,37,0],[35,1,37,3],[35,6,35,7],[36,6,36,7],[37,6,37,7],[38,0,40,0],[38,1,40,3],[38,6,38,7],[39,6,39,7],[40,6,40,7],[50,3,50,9],[51,0,51,12],[45,3,45,12],[46,0,47,0],[47,3,47,12],[48,3,48,12],[49,3,49,12],[48,0,49,2],[50,0,50,2],[45,0,45,2],[46,1,46,2],[47,1,47,2],[21,1,21,2],[22,1,24,1],[22,3,22,12],[23,3,23,12],[24,3,24,12]]}
["知的財産教育協会　検定運営事務局　申請書受付係行",null,null,null,null,null,null,null,null,null,null,"技能検定"]
[]
["団体申込取りまとめ票（本シートについては、データ提出と併せて、印刷の上、郵送してください。）"]
[]
[]
["知的財産管理技能検定の団体申込をします。"]
["受検票および試験結果通知が団体申込責任者へ一括送付されることについて、受検者の同意を得ています。"]
[]
["※太枠内・緑色部分のみご入力ください"]
["申込検定","第48回(2024年7月実施)　知的財産管理技能検定"]
[]
["実施日","2024-07-21"]
["団体名\n（請求書の宛名）"]
["団体コード","※協会にて記入"]
[]
["〈団体申込責任者について〉"]
["氏名","フリガナ"]
[null,"漢字"]
["部署・役職"]
["連絡先","ＴＥＬ\n(固定電話のみ)"]
[null,"E-mail\n(ドメインが団体のもの)"]
["書類送付先\n住　所","〒",null,null,"－"]
[null,"団体\n住所","市区町村"]
[null,null,"番地"]
[null,null,"建物名など"]
["※ＴＥＬを入力する際には、－（ハイフン）やカッコなどは使用せず、市外局番から数字のみで入力してください。"]
["※住所を入力する際には、郵送に必要な事項（建物名など）も入力してください。"]
[]
["〈受検する試験について〉"]
["知的財産\n管理技能検定","1級\n(特許専門業務)",null,null,"学科試験",8900,"円×",null,{"$f":"COUNTIF(受検者リスト[商品],\"１級　学科試験（特許専門業務）\")","v":0},"名","=",{"$f":"IF(I30<>\"\",SUM(F30*I30),0)","v":0},"円"]
[null,null,null,null,"実技試験",23000,"円×",null,{"$f":"COUNTIF(受検者リスト[商品],\"１級　実技試験（特許専門業務）\")","v":0},"名","=",{"$f":"SUM(F31*I31)","v":0},"円"]
["知的財産\n管理技能検定","1級\n（コンテンツ専門業務）",null,null,"学科試験",8900,"円×",null,{"$f":"COUNTIF(受検者リスト[商品],\"１級　学科試験（コンテンツ専門業務）\")","v":0},"名","=",{"$f":"SUM(F32*I32)","v":0},"円"]
[null,null,null,null,"実技試験",23000,"円×",null,{"$f":"COUNTIF(受検者リスト[商品],\"１級　実技試験（コンテンツ専門業務）\")","v":0},"名","=",0,"円"]
["知的財産\n管理技能検定","1級\n（ブランド専門業務）",null,null,"学科試験",8900,"円×",null,{"$f":"COUNTIF(受検者リスト[商品],\"１級　学科試験（ブランド専門業務）\")","v":0},"名","=",0,"円"]
[null,null,null,null,"実技試験",23000,"円×",null,{"$f":"COUNTIF(受検者リスト[商品],\"１級　実技試験（ブランド専門業務）\")","v":0},"名","=",0,"円"]
["知的財産\n管理技能検定","2級",null,null,"学科試験",8200,"円×",null,{"$f":"COUNTIF(受検者リスト[商品],\"２級　学科試験\")+COUNTIF(受検者リスト[商品],\"２級　学科試験（実技試験免除）\")","v":0},"名","=",{"$f":"SUM(F36*I36)","v":0},"円"]
[null,null,null,null,"実技試験",8200,"円×",null,{"$f":"COUNTIF(受検者リスト[商品],\"２級　実技試験\")+COUNTIF(受検者リスト[商品],\"２級　実技試験（学科試験免除）\")","v":0},"名","=",0,"円"]
[null,null,null,null,"学科+実技",16400,"円×",null,{"$f":"COUNTIF(受検者リスト[商品],\"２級　学科試験　および　実技試験\")","v":0},"名","=",0,"円"]
["知的財産\n管理技能検定","3級",null,null,"学科試験",6100,"円×",null,{"$f":"COUNTIF(受検者リスト[商品],\"３級　学科試験\")+COUNTIF(受検者リスト[商品],\"３級　学科試験（実技試験免除）\")","v":0},"名","=",0,"円"]
[null,null,null,null,"実技試験",6100,"円×",null,{"$f":"COUNTIF(受検者リスト[商品],\"３級　実技試験\")+COUNTIF(受検者リスト[商品],\"３級　実技試験（学科試験免除）\")","v":0},"名","=",0,"円"]
[null,null,null,null,"学科+実技",12200,"円×",null,{"$f":"COUNTIF(受検者リスト[商品],\"３級　学科試験　および　実技試験\")","v":0},"名","=",0,"円"]
[]
[null,null,null,null,null,"合　計",null,null,{"$f":"SUM(I30:I41)","v":0},"名",null,{"$f":"SUM(L30:L41)","v":0},"円"]
[]
[]
["申請日"]
["所在地","〒",null,{"$f":"IF(D22=\"\",\"\",D22)","v":""},"－",{"$f":"IF(F22=\"\",\"\",F22)","v":""}]
[null,"住所",null,{"$f":"D23&D24&\" \"&D25","v":" "},{"$f":"IF(E23=\"\",\"\",E23)","v":""},{"$f":"IF(F23=\"\",\"\",F23)","v":""},{"$f":"IF(G23=\"\",\"\",G23)","v":""},"","","","","",""]
["団体名"]
[null,null,null,{"$f":"IF(B13=\"\",\"\",B13)","v":""},{"$f":"IF(E26=\"\",\"\",E26)","v":""},"","","","","","","",""]
["代表者名"]
["〈誓約事項〉"]
["１．当団体所属者等の受検申請をとりまとめの上、団体受検責任者として所定の団体申込手続きをします。"]
["２．本団体申込に付帯する一切の事項に関して連絡先となります。"]
["３．当団体の責任において、各受検者分の受検手数料をとりまとめの上、一括して協会指定の口座に振り込みます。"]
["４．当団体の責任において、各受検者の受検票および合否結果通知を協会より受け取り、各受検者に渡します。"]
["５．当団体の責任において、各受検者の個人情報および試験結果を適切に管理します。"]

{"sheet":"エラー一覧","index":3,"n_rows":3,"n_cols":5,"rows_kept":3,"cut":false,"hidden":false,"merged":[]}
[null,"エラー一覧"]
[]
[null,"No","シート","対象項目","メッセージ"]

{"sheet":"設定","index":4,"n_rows":34,"n_cols":65,"rows_kept":34,"cut":false,"hidden":true,"merged":[]}
[]
[]
[null,null,"CSV",null,null,"Excel"]
[null,null,null,"位置",null,null,null,null,null,null,null,"Default",null,"1w",null,"1w-1",null,"1w-2",null,"1w-3",null,"1w-4",null,"1w-5",null,"1p",null,"1p-1",null,"1p-2",null,"1p-3",null,2,null,"2-1",null,"2-2",null,"2-3",null,"2-4",null,"2e",null,"2e-1",null,"2e-2",null,"2e-3",null,"2e-4",null,3,null,"3-1",null,"3-2",null,"3e",null,"3e-1",null,"3e-2"]
[null,"項番","ヘッダ名称","入力","出力","項目","書式","置換","マスタ","複数選択","文字数上限","必須","入力","必須","入力","必須","入力","必須","入力","必須","入力","必須","入力","必須","入力","必須","入力","必須","入力","必須","入力","必須","入力","必須","入力","必須","入力","必須","入力","必須","入力","必須","入力","必須","入力","必須","入力","必須","入力","必須","入力","必須","入力","必須","入力","必須","入力","必須","入力","必須","入力","必須","入力","必須","入力"]
[null,1,"-","-","-","No"]
[null,2,"-","-","-","チェック"]
[null,3,"商品",1,1,"商品"]
[null,4,"姓",2,2,"漢字姓",null,"vbWide",null,null,20,null,"×","○","○",null,null,null,null,null,null,null,null,null,null,"○","○",null,null,null,null,null,null,"○","○",null,null,null,null,null,null,null,null,"○","○",null,null,null,null,null,null,null,null,"○","○",null,null,null,null,"○","○"]
[null,5,"名",3,3,"漢字名",null,"vbWide",null,null,20,null,"×","○","○",null,null,null,null,null,null,null,null,null,null,"○","○",null,null,null,null,null,null,"○","○",null,null,null,null,null,null,null,null,"○","○",null,null,null,null,null,null,null,null,"○","○",null,null,null,null,"○","○"]
[null,6,"セイ",4,4,"フリガナ姓",null,"vbWide\nvbKatakana",null,null,20,null,"×","○","○",null,null,null,null,null,null,null,null,null,null,"○","○",null,null,null,null,null,null,"○","○",null,null,null,null,null,null,null,null,"○","○",null,null,null,null,null,null,null,null,"○","○",null,null,null,null,"○","○"]
[null,7,"メイ",5,5,"フリガナ名",null,"vbWide\nvbKatakana",null,null,20,null,"×","○","○",null,null,null,null,null,null,null,null,null,null,"○","○",null,null,null,null,null,null,"○","○",null,null,null,null,null,null,null,null,"○","○",null,null,null,null,null,null,null,null,"○","○",null,null,null,null,"○","○"]
[null,8,"生年月日",6,6,"生年月日","yyyy/mm/dd",null,null,null,null,null,"×","○","○",null,null,null,null,null,null,null,null,null,null,"○","○",null,null,null,null,null,null,"○","○",null,null,null,null,null,null,null,null,"○","○",null,null,null,null,null,null,null,null,"○","○",null,null,null,null,"○","○"]
[null,9,"性別",7,7,"性別",null,null,"性別",null,null,null,"×","○","○",null,null,null,null,null,null,null,null,null,null,"○","○",null,null,null,null,null,null,"○","○",null,null,null,null,null,null,null,null,"○","○",null,null,null,null,null,null,null,null,"○","○",null,null,null,null,"○","○"]
[null,10,"電話番号",8,8,"電話番号",null,"vbNarrow",null,null,null,null,"×","○","○",null,null,null,null,null,null,null,null,null,null,"○","○",null,null,null,null,null,null,"○","○",null,null,null,null,null,null,null,null,"○","○",null,null,null,null,null,null,null,null,"○","○",null,null,null,null,"○","○"]
[null,11,"メールアドレス",9,9,"E-mail",null,"vbNarrow",null,null,50,null,"×",null,"○",null,null,null,null,null,null,null,null,null,null,null,"○",null,null,null,null,null,null,null,"○",null,null,null,null,null,null,null,null,null,"○",null,null,null,null,null,null,null,null,null,"○",null,null,null,null,null,"○"]
[null,12,"郵便番号",10,10,"郵便番号",null,"vbNarrow",null,null,null,null,"×","○","○",null,null,null,null,null,null,null,null,null,null,"○","○",null,null,null,null,null,null,"○","○",null,null,null,null,null,null,null,null,"○","○",null,null,null,null,null,null,null,null,"○","○",null,null,null,null,"○","○"]
[null,13,"都道府県",11,11,"都道府県",null,null,"都道府県",null,null,null,"×","○","○",null,null,null,null,null,null,null,null,null,null,"○","○",null,null,null,null,null,null,"○","○",null,null,null,null,null,null,null,null,"○","○",null,null,null,null,null,null,null,null,"○","○",null,null,null,null,"○","○"]
[null,14,"市区町村",12,12,"住所１（市区町村）",null,"vbWide",null,null,50,null,"×","○","○",null,null,null,null,null,null,null,null,null,null,"○","○",null,null,null,null,null,null,"○","○",null,null,null,null,null,null,null,null,"○","○",null,null,null,null,null,null,null,null,"○","○",null,null,null,null,"○","○"]
[null,15,"番地",13,13,"住所２（番地）",null,"vbWide",null,null,25,null,"×","○","○",null,null,null,null,null,null,null,null,null,null,"○","○",null,null,null,null,null,null,"○","○",null,null,null,null,null,null,null,null,"○","○",null,null,null,null,null,null,null,null,"○","○",null,null,null,null,"○","○"]
[null,16,"マンション名・部屋番号など",14,14,"住所３（ビル･マンション名）",null,"vbWide",null,null,25,null,"×",null,"○",null,null,null,null,null,null,null,null,null,null,null,"○",null,null,null,null,null,null,null,"○",null,null,null,null,null,null,null,null,null,"○",null,null,null,null,null,null,null,null,null,"○",null,null,null,null,null,"○"]
[null,17,"地区ID",15,15,"受検地",null,null,"受検地",null,null,null,"×","○","○",null,null,null,null,null,null,null,null,null,null,"○","○",null,null,null,null,null,null,"○","○",null,null,null,null,null,null,null,null,"○","○",null,null,null,null,null,null,null,null,"○","○",null,null,null,null,"○","○"]
[null,18,"個人結果データ送付",16,16,"個人結果ﾃﾞｰﾀ送付",null,null,"個人結果データ送付",null,null,null,"×","○","○",null,null,null,null,null,null,null,null,null,null,"○","○",null,null,null,null,null,null,"○","○",null,null,null,null,null,null,null,null,"○","○",null,null,null,null,null,null,null,null,"○","○",null,null,null,null,"○","○"]
[null,19,"情報メール希望",17,17,"協会からの情報提供",null,null,"情報メール希望",null,null,null,"×","○","○",null,null,null,null,null,null,null,null,null,null,"○","○",null,null,null,null,null,null,"○","○",null,null,null,null,null,null,null,null,"○","○",null,null,null,null,null,null,null,null,"○","○",null,null,null,null,"○","○"]
[null,20,"受検資格番号",18,18,"受検資格番号",null,null,null,null,null,null,"×",null,"○",null,null,null,null,null,null,null,null,null,null,null,"○",null,null,null,null,null,null,null,"○",null,null,null,null,null,null,null,null,null,"○",null,null,null,null,null,null,null,null,null,"○",null,null,null,null,null,"○"]
[null,21,"企業名・団体名",19,19,"企業名・団体名",null,"vbWide",null,null,null,null,"×",null,"○",null,null,null,null,null,null,null,null,null,null,null,"○",null,null,null,null,null,null,null,"○",null,null,null,null,null,null,null,null,null,"○",null,null,null,null,null,null,null,null,null,"○",null,null,null,null,null,"○"]
[null,22,"実務経験通算年数",20,20,"実務経験通算年数",null,null,null,null,null,null,"×",null,"○",null,null,null,null,null,null,null,null,null,null,null,"○",null,null,null,null,null,null,null,"○",null,null,null,null,null,null,null,null,null,"○",null,null,null,null,null,null,null,null,null,"○",null,null,null,null,null,"○"]
[null,23,"経験業務内容",21,21,"経験業務内容",null,null,"経験業務内容","○",null,null,"×",null,"○",null,null,null,null,null,null,null,null,null,null,null,"○",null,null,null,null,null,null,null,"○",null,null,null,null,null,null,null,null,null,"○",null,null,null,null,null,null,null,null,null,"○",null,null,null,null,null,"○"]
[null,24,"-","-","-","免除番号",null,null,"免除番号",null,null,null,"×",null,"○",null,null,null,null,null,null,null,null,null,null,null,"○",null,null,null,null,null,null,null,"○",null,null,null,null,null,null,null,null,null,"○",null,null,null,null,null,null,null,null,null,"○",null,null,null,null,null,"○"]
[null,25,"認定番号",22,22,"認定番号または技能士番号",null,null,null,null,null,null,"×",null,"○",null,null,null,null,null,null,null,null,null,null,null,"○",null,null,null,null,null,null,null,"○",null,null,null,null,null,null,null,null,null,"○",null,null,null,null,null,null,null,null,null,"○",null,null,null,null,null,"○"]
[null,26,"免除申請する試験",23,"-","免除申請する試験",null,null,"免除試験",null,null,null,"×",null,"○",null,null,null,null,null,null,null,null,null,null,null,"○",null,null,null,null,null,null,null,"○",null,null,null,null,null,null,null,null,null,"○",null,null,null,null,null,null,null,null,null,"○",null,null,null,null,null,"○"]
[null,27,"一部合格番号",24,23,"一部合格番号",null,null,null,null,null,null,"×",null,"○",null,null,null,null,null,null,null,null,null,null,null,"○",null,null,null,null,null,null,null,"○",null,null,null,null,null,null,null,null,null,"○",null,null,null,null,null,null,null,null,null,"○",null,null,null,null,null,"○"]
[null,28,"中小企業者種別",25,24,"中小企業者種別",null,null,"中小企業者種別",null,null,null,"×","○","○",null,null,null,null,null,null,null,null,null,null,"○","○",null,null,null,null,null,null,"○","○",null,null,null,null,null,null,null,null,"○","○",null,null,null,null,null,null,null,null,"○","○",null,null,null,null,"○","○"]
[null,29,"EOL","-",25,"-"]

{"sheet":"マスタ","index":5,"n_rows":94,"n_cols":17,"rows_kept":94,"cut":false,"hidden":true,"merged":[]}
[null,"マスタ"]
[]
[null,"■選択項目",null,null,null,"■商品",null,null,null,null,null,"■受検資格",null,null,"■選択項目（PopUpヒント）"]
[null,"種別","名称","値",null,"商品名","等級","試験","免除試験","表示制御",null,"受検資格番号","表示制御",null,"種別","表示制御","ヒント"]
[null,"性別","男","1",null,"３級　学科試験",3,"w",null,"3",null,1,"1w",null,"受検資格番号","1w","１．知的財産に関する業務について4年以上の実務経験を有する\n２．２級技能検定の合格者(*1)で、知的財産に関する業務について1年以上の実務経験を有する\n３．３級技能検定の合格者(*1)で、知的財産に関する業務について２年以上の実務経験を有する\n４．学校教育法による大学又は大学院において検定職種に関する科目(*2)について\n　　10単位以上を修得した者で、知的財産に関する業務について1年以上の実務経験を有する\n５．ビジネス著作権検定上級の合格者で、\n　　知的財産に関する業務について１年以上の実務経験を有する者"]
[null,"性別","女","2",null,"３級　学科試験（実技試験免除）",3,"w","p","3e",null,2,"1w",null,"受検資格番号","1p","１．知的財産管理技能検定１級（ブランド専門業務）の学科試験に合格している。(学科試験の合格日の翌々年度までに限る)\n２．一級知的財産管理技能士(コンテンツ専門業務)である\n３．一級知的財産管理技能士(特許専門業務)である"]
[null,"都道府県","北海道",1,null,"３級　実技試験",3,"p",null,"3",null,3,"1w",null,"受検資格番号",2,"１．知的財産に関する業務について２年以上の実務経験を有する\n２．３級技能検定の合格者\n３．学校教育法による大学又は大学院において検定職種に関する科目(*)について10単位以上を修得した者\n４．ビジネス著作権検定上級の合格者"]
[null,"都道府県","青森県",2,null,"３級　実技試験（学科試験免除）",3,"p","w","3e",null,4,"1w",null,"受検資格番号","2e","１．知的財産に関する業務について２年以上の実務経験を有する\n２．３級技能検定の合格者\n３．学校教育法による大学又は大学院において検定職種に関する科目(*)について10単位以上を修得した者\n４．ビジネス著作権検定上級の合格者"]
[null,"都道府県","岩手県",3,null,"３級　学科試験　および　実技試験",3,"wp",null,"3",null,5,"1w",null,"受検資格番号","3","１（上段）．知的財産に関する業務に従事している\n２（下段）．知的財産に関する業務に従事しようとしている"]
[null,"都道府県","宮城県",4,null,"２級　学科試験",2,"w",null,"2",null,1,"1p",null,"受検資格番号","3e","１（上段）．知的財産に関する業務に従事している\n２（下段）．知的財産に関する業務に従事しようとしている"]
[null,"都道府県","秋田県",5,null,"２級　学科試験（実技試験免除）",2,"w","p","2e",null,2,"1p",null,"免除番号","2","A．２級の学科試験又は実技試験のいずれかの合格者は、\n　　当該合格した試験が免除される。\n　　(当該合格した試験の合格日の翌々年度までに限る)\nB．以下の２つの条件をともに満たしている場合、\n　　２級学科試験が免除される。\n　①学校教育法による大学院において検定職種に関する\n　　課程を修了している\n　②検定職種に関する科目(*)について20単位以上を\n　　修得している"]
[null,"都道府県","山形県",6,null,"２級　実技試験",2,"p",null,"2",null,"3","1p"]
[null,"都道府県","福島県",7,null,"２級　実技試験（学科試験免除）",2,"p","w","2e",null,1,2]
[null,"都道府県","茨城県",8,null,"２級　学科試験　および　実技試験",2,"wp",null,"2",null,2,2]
[null,"都道府県","栃木県",9,null,"１級　学科試験（コンテンツ専門業務）",1,"w",null,"1w",null,3,2]
[null,"都道府県","群馬県",10,null,"１級　実技試験（ブランド専門業務）",1,"p",null,"1p",null,4,2]
[null,"都道府県","埼玉県",11,null,null,null,null,null,null,null,1,"2e"]
[null,"都道府県","千葉県",12,null,null,null,null,null,null,null,2,"2e"]
[null,"都道府県","東京都",13,null,null,null,null,null,null,null,3,"2e"]
[null,"都道府県","神奈川県",14,null,null,null,null,null,null,null,4,"2e"]
[null,"都道府県","新潟県",15,null,null,null,null,null,null,null,"1","3"]
[null,"都道府県","富山県",16,null,null,null,null,null,null,null,"2","3"]
[null,"都道府県","石川県",17,null,null,null,null,null,null,null,"1","3e"]
[null,"都道府県","福井県",18,null,null,null,null,null,null,null,"2","3e"]
[null,"都道府県","山梨県",19]
[null,"都道府県","長野県",20]
[null,"都道府県","岐阜県",21]
[null,"都道府県","静岡県",22]
[null,"都道府県","愛知県",23]
[null,"都道府県","三重県",24]
[null,"都道府県","滋賀県",25]
[null,"都道府県","京都府",26]
[null,"都道府県","大阪府",27]
[null,"都道府県","兵庫県",28]
[null,"都道府県","奈良県",29]
[null,"都道府県","和歌山県",30]
[null,"都道府県","鳥取県",31]
[null,"都道府県","島根県",32]
[null,"都道府県","岡山県",33]
[null,"都道府県","広島県",34]
[null,"都道府県","山口県",35]
[null,"都道府県","徳島県",36]
[null,"都道府県","香川県",37]
[null,"都道府県","愛媛県",38]
[null,"都道府県","高知県",39]
[null,"都道府県","福岡県",40]
[null,"都道府県","佐賀県",41]
[null,"都道府県","長崎県",42]
[null,"都道府県","熊本県",43]
[null,"都道府県","大分県",44]
[null,"都道府県","宮崎県",45]
[null,"都道府県","鹿児島県",46]
[null,"都道府県","沖縄県",47]
[null,"受検地","札幌周辺","札幌周辺"]
[null,"受検地","仙台周辺","仙台周辺"]
[null,"受検地","水戸周辺","水戸周辺"]
[null,"受検地","千葉・船橋周辺","千葉・船橋周辺"]
[null,"受検地","東京23区及びその周辺","東京23区及びその周辺"]
[null,"受検地","横浜・川崎周辺","横浜・川崎周辺"]
[null,"受検地","松本周辺","松本周辺"]
[null,"受検地","金沢周辺","金沢周辺"]
[null,"受検地","浜松周辺","浜松周辺"]
[null,"受検地","名古屋周辺","名古屋周辺"]
[null,"受検地","京都周辺","京都周辺"]
[null,"受検地","大阪周辺","大阪周辺"]
[null,"受検地","神戸周辺","神戸周辺"]
[null,"受検地","岡山周辺","岡山周辺"]
[null,"受検地","広島周辺","広島周辺"]
[null,"受検地","山口周辺","山口周辺"]
[null,"受検地","徳島周辺","徳島周辺"]
[null,"受検地","松山周辺","松山周辺"]
[null,"受検地","福岡周辺","福岡周辺"]
[null,"個人結果データ送付","承諾","1"]
[null,"個人結果データ送付","拒否","2"]
[null,"情報メール希望","希望","1"]
[null,"情報メール希望","否","2"]
[null,"中小企業者種別","中小企業者（会社）の経営者","1"]
[null,"中小企業者種別","中小企業者（会社）の従業者","2"]
[null,"中小企業者種別","中小企業者（個人）の経営者","3"]
[null,"中小企業者種別","中小企業者（個人）の従業者","4"]
[null,"中小企業者種別","中小企業者（会社又は個人）ではない","5"]
[null,"経験業務内容","戦略・情報・価値評価","1"]
[null,"経験業務内容","法務・リスクマネジメント","2"]
[null,"経験業務内容","予算・人材・アウトソーシング","3"]
[null,"経験業務内容","調査","4"]
[null,"経験業務内容","ブランド","5"]
[null,"経験業務内容","技術","6"]
[null,"経験業務内容","コンテンツ","7"]
[null,"経験業務内容","デザイン","8"]
[null,"経験業務内容","契約・エンフォースメント","9"]
[null,"免除番号","A","A"]
[null,"免除番号","B","B"]
[null,"免除試験","学科","学科"]
[null,"免除試験","実技","実技"]

{"sheet":"メッセージ","index":6,"n_rows":5,"n_cols":4,"rows_kept":5,"cut":false,"hidden":true,"merged":[]}
["ID","条件","メッセージ","備考"]
["E001","必須項目が未入力の場合","必須入力です。"]
["E002","フォーマット不正","正しく入力してください。"]
["E003","文字数上限","文字数上限を超えています。"]
["E004","受検資格番号の設定不正","商品に対応した受検資格番号を入力してください。"]